bitfinex-derivatives/quotes_BNBF0:USTF0_20250331
["timestamp","ask_amount","ask_price","bid_price","bid_amount"]
[1743407740584,3.076,594.95,594.38,0.28901696]
[1743407741183,3.076,594.95,594.39,0.33647941]
[1743407741483,3.076,594.95,594.4,0.28901696]
[1743407741689,3.076,594.95,594.41,0.33646809]
[1743407741890,3.076,594.95,594.42,0.28901696]
[1743407742188,3.076,594.95,594.41,0.33646809]
[1743407742390,3.076,594.95,594.43,0.28903542]
[1743407742688,3.076,594.95,594.44,0.28903542]
[1743407742888,3.076,594.95,594.42,0.28903542]
[1743407743189,3.076,594.95,594.43,0.62549219]
[1743407743384,3.076,594.95,594.44,0.28903542]
[1743407747292,3.076,594.95,594.44,0.62548653]
[1743407747491,3.076,594.95,594.44,0.33645111]
[1743407747693,3.076,594.95,594.45,0.28903103]
[1743407748688,3.076,594.95,594.45,0.62547648]
[1743407748894,3.076,594.95,594.46,0.28903103]
[1743407749290,3.076,594.95,594.47,0.28900021]
[1743407749595,3.076,594.95,594.48,0.62542868]
[1743407749894,3.076,594.95,594.49,0.62542302]
[1743407750093,3.076,594.95,594.5,0.62541736]
[1743407750394,3.076,594.95,594.41,0.29258081]
[1743407750395,3.076,594.95,594.51,0.6254117]
[1743407750694,3.076,594.95,594.52,0.62540605]
[1743407750895,3.076,594.95,594.53,0.62540039]
[1743407751093,0.913,594.95,594.54,0.62539473]
[1743407751390,0.913,594.95,594.55,0.28900021]
[1743407752587,0.913,594.95,594.54,0.33639452]
[1743407752793,0.35865727,594.95,594.56,0.28884973]
[1743407753092,3.56735865,596.14,594.57,0.28884973]
[1743407753287,2.53837975,596.13,594.55,0.28884973]
[1743407753492,0.30858187,596.12,594.55,0.28884973]
[1743407753796,0.762,596.11,594.55,0.28884973]
[1743407754194,0.30859375,596.1,594.55,0.28884973]
[1743407754393,0.977,596.09,594.57,0.33637755]
[1743407754590,0.30859375,596.08,594.58,0.28884973]
[1743407754791,0.30859375,596.08,594.6,0.33636057]
[1743407754992,0.6009386,596.08,594.61,0.28884973]
[1743407755189,0.30859375,596.07,594.63,0.3363436]
[1743407755393,0.30859375,596.07,594.64,0.28884973]
[1743407755594,2.21401105,596.07,594.66,0.33632664]
[1743407755897,5.14172275,596.07,594.67,0.28884973]
[1743407756104,3.90166568,596.06,594.69,0.33630967]
[1743407756397,2.52259177,596.05,594.7,0.28884973]
[1743407756596,0.30858072,596.04,594.7,0.28884973]
[1743407756790,1.16012343,596.04,594.7,0.28884973]
[1743407756995,0.30858072,596.03,594.7,0.28884973]
[1743407757195,2.52259177,596.03,594.7,0.28884973]
[1743407757391,0.30858338,596.02,594.72,0.3362927]
[1743407757596,0.30858338,596.02,594.73,0.28884973]
[1743407757799,3.59154864,596.03,594.74,0.3362814]
[1743407757997,3.23629548,596.02,594.75,0.28884973]
[1743407758193,2.23179917,596.01,594.75,0.28884973]
[1743407759000,0.29233011,596.02,594.75,0.28884973]
[1743407759403,0.29233011,596.02,594.76,0.33627009]
[1743407759601,0.29233011,596.02,594.77,0.28884973]
[1743407759802,0.29233011,596.02,594.78,0.62512587]
[1743407760002,4.60199756,596.02,594.79,0.28886709]
[1743407760299,2.20890938,596.01,594.79,0.28886709]
[1743407760500,5.79647265,596.01,594.79,0.28886709]
[1743407760700,2.20890938,596.0,594.79,0.28886709]
[1743407760899,5.79647265,596.0,594.79,0.28886709]
[1743407761100,2.20890938,595.99,594.78,0.33625878]
[1743407761301,0.84984342,595.99,594.79,0.28886389]
[1743407761604,3.77755512,595.99,594.79,0.28886389]
[1743407761804,1.38195575,595.98,594.79,0.28886389]
[1743407762104,3.59086513,595.98,594.79,0.28886389]
[1743407762297,2.23179917,595.97,594.79,0.28886389]
[1743407762900,5.79414964,596.01,594.79,0.28886389]
[1743407763101,5.46811978,596.0,594.79,0.28886389]
[1743407763302,3.59028929,595.99,594.79,0.28886389]
[1743407763606,1.125202,595.98,594.79,0.28886389]
[1743407763803,1.97504542,595.98,594.79,0.28886389]
[1743407764209,1.125202,595.98,594.79,0.28886389]
[1743407764403,2.23179917,595.98,594.79,0.28886389]
[1743407764605,0.679,596.03,594.79,0.28886389]
[1743407766106,1.52743891,596.03,594.79,0.28886389]
[1743407766306,6.4649036,596.03,594.79,0.28886389]
[1743407766610,2.20594117,596.02,594.79,0.28886389]
[1743407766808,3.5828498,596.02,594.79,0.28886389]
[1743407767411,1.125202,596.01,594.79,0.28886389]
[1743407767705,4.7080518,596.01,594.79,0.28886389]
[1743407767906,1.37690863,596.0,594.79,0.28886389]
[1743407768307,4.7080518,596.0,594.79,0.28886389]
[1743407768506,2.22534754,595.99,594.79,0.28886389]
[1743407769012,0.679,596.03,594.79,0.28886389]
[1743407771615,0.679,596.03,594.78,0.33625878]
[1743407771812,0.679,596.03,594.79,0.28879865]
[1743407772009,2.22292266,596.07,594.79,0.28879865]
[1743407772815,3.57848083,596.08,594.79,0.28879865]
[1743407773218,0.30856426,596.07,594.8,0.33624747]
[1743407773415,1.43376626,596.07,594.8,0.33624747]
[1743407773616,4.70368283,596.07,594.81,0.28879865]
[1743407773816,1.37540574,596.06,594.81,0.28879865]
[1743407774013,2.22292266,596.06,594.81,0.28879865]
[1743407774221,0.30856219,596.05,594.81,0.28879865]
[1743407774513,1.125202,596.08,594.81,0.28879865]
[1743407774718,1.82408884,596.09,594.81,0.28879865]
[1743407774919,0.977,596.09,594.83,0.33623051]
[1743407775119,0.977,596.09,594.84,0.28879865]
[1743407775316,0.679,596.08,594.85,0.33621921]
[1743407775516,0.679,596.08,594.86,0.28879865]
[1743407776119,0.679,596.08,594.87,0.33620791]
[1743407776319,0.679,596.08,594.88,0.28879865]
[1743407776519,0.679,596.08,594.89,0.3361966]
[1743407776717,2.90055775,596.08,594.9,0.28879865]
[1743407777016,0.30858237,596.07,594.91,0.28881609]
[1743407777215,4.06982949,596.07,594.9,0.28881609]
[1743407777420,6.08359147,596.06,594.9,0.28881609]
[1743407777720,6.0836631,596.05,594.9,0.28881609]
[1743407777921,6.79926773,596.04,594.9,0.28881609]
[1743407778221,6.7988331,596.03,594.9,0.28881609]
[1743407778420,5.44398188,596.02,594.91,0.3361853]
[1743407778619,2.22112312,596.01,594.92,0.28880935]
[1743407778822,0.701,596.03,594.92,0.624989]
[1743407779021,0.701,596.03,594.92,0.33617965]
[1743407779222,0.701,596.03,594.93,0.28878922]
[1743407779521,0.701,596.03,594.94,0.28878936]
[1743407779722,0.701,596.03,594.95,0.28878936]
[1743407779921,0.701,596.03,594.93,0.28878936]
[1743407780118,0.701,596.03,594.94,0.28878936]
[1743407780422,0.701,596.03,594.95,0.28878936]
[1743407780618,0.701,596.03,594.93,0.28878936]
[1743407780825,0.701,596.03,594.94,0.28878936]
[1743407781123,0.94,596.02,594.95,0.28878936]
[1743407781323,0.94,596.02,594.93,0.28878936]
[1743407781515,0.94,596.02,594.94,0.28878936]
[1743407781720,1.135,596.01,594.93,0.28878936]
[1743407781920,2.224,596.01,594.94,0.28878936]
[1743407782117,3.07097073,596.01,594.93,0.28878936]
[1743407782523,4.44535825,596.01,594.93,0.28878936]
[1743407782823,0.84697073,596.0,594.93,0.28878936]
[1743407783024,1.97217273,596.0,594.93,0.28878936]
[1743407783327,3.34719024,596.0,594.93,0.28878936]
[1743407783523,0.84727536,595.99,594.93,0.28878936]
[1743407783719,5.13742385,596.0,594.93,0.28878936]
[1743407783920,2.22231018,595.99,594.93,0.28878936]
[1743407785523,0.84729267,595.99,594.93,0.28878936]
[1743407785725,1.97249467,596.0,594.93,0.28878936]
[1743407786220,0.84729267,596.0,594.93,0.28878936]
[1743407786424,3.07129267,596.01,594.93,0.28878936]
[1743407786622,0.9816015,595.96,593.82,2.52933367]
[1743407786818,1.62598365,595.95,593.92,0.33674568]
[1743407787126,0.9816015,595.84,594.01,2.52933367]
[1743407787320,0.30878353,595.83,594.03,0.33668333]
[1743407787519,0.98226536,595.81,594.04,0.28902584]
[1743407787724,0.30878353,595.8,594.06,0.33666633]
[1743407788025,0.30878353,595.8,594.07,0.28902584]
[1743407788226,0.29252178,595.79,594.09,0.33664932]
[1743407788423,0.30878353,595.78,594.1,0.28902584]
[1743407788621,0.30878353,595.78,594.12,0.33663233]
[1743407788819,0.30878353,595.78,594.13,0.28902584]
[1743407789017,0.30878353,595.78,594.15,0.33661533]
[1743407789220,0.30878353,595.78,594.16,0.28902584]
[1743407789425,0.30878353,595.78,594.18,0.33659833]
[1743407789924,0.679,595.77,594.19,0.28902584]
[1743407790118,0.30878353,595.76,594.21,0.33658134]
[1743407790323,0.30878353,595.76,594.22,0.28902584]
[1743407790726,7.31063888,595.76,594.22,0.28902584]
[1743407790920,6.59620681,595.75,594.22,0.28902584]
[1743407791123,3.01950485,595.74,594.24,0.33656435]
[1743407791325,0.30877694,595.73,594.25,0.28900847]
[1743407791519,0.30877694,595.73,594.27,0.33654736]
[1743407791722,0.30877694,595.73,594.28,0.28900847]
[1743407792026,6.09358735,595.73,594.3,0.33653037]
[1743407792226,2.51537921,595.72,594.31,0.28900847]
[1743407792422,0.30877694,595.71,594.33,0.33651338]
[1743407792724,0.84869318,595.71,594.34,0.28900847]
[1743407793025,3.58583137,595.71,594.36,0.33649639]
[1743407793226,3.58583137,595.71,594.37,0.28898859]
[1743407793421,1.125202,595.7,594.39,0.33647941]
[1743407793626,3.35235992,595.7,594.4,0.28898859]
[1743407793823,2.22715792,595.69,594.42,0.33646243]
[1743407794022,1.125202,595.7,594.43,0.28898859]
[1743407794324,0.29248122,595.69,594.44,0.33645111]
[1743407794522,0.29248122,595.69,594.45,0.28898859]
[1743407794722,0.29248122,595.69,594.46,0.33643979]
[1743407794926,0.29248122,595.69,594.47,0.28898859]
[1743407795125,6.08623805,595.69,594.48,0.33642847]
[1743407795327,2.22836801,595.68,594.49,0.28898859]
[1743407795521,2.91640631,595.68,594.5,0.33641715]
[1743407795723,5.14477432,595.68,594.51,0.28898859]
[1743407795924,2.22836801,595.67,594.52,0.33640584]
[1743407796231,2.22836801,595.67,594.53,0.28898859]
[1743407796426,3.35357001,595.68,594.54,0.33639452]
[1743407796627,0.30878959,595.67,594.55,0.28898859]
[1743407797124,0.29249719,595.66,594.55,0.28898859]
[1743407797322,0.30878959,595.65,594.55,0.28898859]
[1743407798228,0.30881334,595.64,594.56,0.28904455]
[1743407798423,0.30881334,595.63,594.57,0.28904455]
[1743407798629,0.30881334,595.65,594.55,0.28904455]
[1743407798928,0.30881334,595.64,594.56,0.28904455]
[1743407799125,1.30281334,595.64,594.55,0.28904455]
[1743407799322,0.30881334,595.63,594.56,0.28904455]
[1743407799528,0.30881334,595.63,594.55,0.28904455]
[1743407799725,5.02280865,595.63,594.56,0.28904455]
[1743407799925,2.91640631,595.62,594.57,0.28904455]
[1743407800128,6.50519962,595.62,594.58,0.28904455]
[1743407800325,3.35357001,595.61,594.59,0.28904455]
[1743407800525,2.22836801,595.6,594.55,0.28904455]
[1743407800726,0.84963701,595.6,594.54,0.33639452]
[1743407800931,5.00684221,595.61,594.55,0.28904186]
[1743407801128,1.378731,595.6,594.55,0.28904186]
[1743407801328,0.30882969,595.59,594.55,0.28904186]
[1743407801929,6.10602672,595.59,594.55,0.28904186]
[1743407802133,2.21040833,595.58,594.55,0.28904186]
[1743407802435,9.63260334,595.58,594.55,0.28904186]
[1743407802637,3.58968812,595.57,594.55,0.28904186]
[1743407802837,6.50609443,595.57,594.55,0.28904186]
[1743407803135,3.35430112,595.56,594.55,0.28904186]
[1743407803938,2.22909912,595.56,594.55,0.28904186]
[1743407804131,0.85036812,595.57,594.55,0.28904186]
[1743407804334,0.30882969,595.56,594.55,0.28904186]
[1743407804734,0.679,595.55,594.55,0.28904186]
[1743407805035,0.30882969,595.54,594.55,0.28904186]
[1743407805641,0.679,595.55,594.54,0.33639452]
[1743407805841,0.30882379,595.54,594.55,0.28905315]
[1743407806839,0.679,595.55,594.55,0.28905315]
[1743407809041,0.679,595.55,594.54,0.33639452]
[1743407809947,0.679,595.55,594.55,0.28904899]
[1743407810556,0.679,595.55,594.54,0.33639452]
[1743407810750,0.29250826,595.54,594.55,0.28902876]
[1743407811156,0.29250826,595.54,594.56,0.28902779]
[1743407811445,0.679,595.55,594.54,0.33639452]
[1743407811645,0.679,595.55,594.55,0.28902485]
[1743407812045,0.29265462,595.54,594.55,0.28902485]
[1743407812250,0.29265462,595.54,594.56,0.3363832]
[1743407813446,0.29265462,595.54,594.57,0.28901912]
[1743407814544,0.679,595.55,594.57,0.28901912]
[1743407814748,0.2925058,595.53,594.57,0.28901912]
[1743407816950,0.2925058,595.53,594.58,0.28901835]
[1743407817151,0.2925058,595.53,594.56,0.3363832]
[1743407817448,0.679,595.55,594.57,0.28901727]
[1743407818053,1.46049351,595.54,594.56,0.3363832]
[1743407819654,1.138,595.53,594.56,0.3363832]
[1743407820455,0.73,595.52,594.57,0.28902462]
[1743407821055,0.968,595.51,594.57,0.28902462]
[1743407821255,0.968,595.51,594.58,0.28902566]
[1743407821455,0.968,595.51,594.56,0.3363832]
[1743407822058,0.30885304,595.5,594.56,0.3363832]
[1743407822553,6.10538669,595.5,594.56,0.3363832]
[1743407822752,2.51904927,595.49,594.56,0.3363832]
[1743407822957,5.79653365,595.49,594.56,0.3363832]
[1743407823159,2.5190666,595.48,594.56,0.3363832]
[1743407823351,2.21015989,595.48,594.56,0.3363832]
[1743407823553,0.85014283,595.48,594.56,0.3363832]
[1743407823957,3.7710602,595.48,594.56,0.3363832]
[1743407824158,8.71745102,595.48,594.56,0.3363832]
[1743407824353,5.79653365,595.47,594.56,0.3363832]
[1743407824554,2.21015989,595.46,594.56,0.3363832]
[1743407824754,0.85014283,595.46,594.56,0.3363832]
[1743407824956,3.7710602,595.46,594.56,0.3363832]
[1743407825459,0.968,595.51,594.56,0.3363832]
[1743407825460,2.22860232,595.45,594.56,0.3363832]
[1743407825658,5.79415457,595.48,594.56,0.3363832]
[1743407825958,2.21015989,595.47,594.56,0.3363832]
[1743407826152,3.7710602,595.47,594.56,0.3363832]
[1743407826359,8.71507194,595.47,594.56,0.3363832]
[1743407826659,6.50953675,595.46,594.56,0.3363832]
[1743407826855,2.22860232,595.45,594.56,0.3363832]
[1743407827353,0.29258942,595.46,594.56,0.3363832]
[1743407829156,6.08237164,595.46,594.56,0.3363832]
[1743407829359,2.2076805,595.45,593.23,2.52933367]
[1743407829659,5.78978222,595.45,593.34,0.33707486]
[1743407829859,2.2076805,595.44,593.35,0.28915534]
[1743407830061,3.77002525,595.44,593.36,0.28915534]
[1743407830260,8.71069959,595.44,593.46,0.3370067]
[1743407830462,5.78978222,595.43,593.46,0.3370067]
[1743407830660,2.2076805,595.42,593.47,0.28915534]
[1743407830856,0.84910788,595.42,593.48,0.28915534]
[1743407831062,0.84910788,595.42,593.5,0.33698399]
[1743407831361,3.77002525,595.42,593.51,0.28915534]
[1743407831556,8.71069959,595.42,593.53,0.33696696]
[1743407831755,3.58613999,595.41,593.54,0.28915534]
[1743407831957,6.50705736,595.41,593.56,0.33694992]
[1743407832158,2.22756737,595.4,593.57,0.28915534]
[1743407832363,2.22756737,595.4,593.59,0.33693289]
[1743407832556,0.84910788,595.4,593.6,0.28915534]
[1743407832861,3.33165938,595.5,593.62,0.33691587]
[1743407833064,1.37643372,595.49,593.63,0.28915534]
[1743407833259,0.29271739,595.39,593.65,0.33689884]
[1743407833462,6.2886725,595.5,593.66,0.28915534]
[1743407833657,9.20958987,595.49,593.68,0.33688182]
[1743407833861,5.78428379,595.48,593.69,0.28915534]
[1743407834061,6.28867324,595.48,593.71,0.33686479]
[1743407834259,5.12647348,595.47,593.72,0.28915534]
[1743407834458,3.57872768,595.46,593.74,0.33684777]
[1743407834661,5.78532704,595.46,593.75,0.28915534]
[1743407834864,2.20595048,595.45,593.77,0.33683075]
[1743407835159,2.20595048,595.45,593.78,0.28916282]
[1743407835366,5.12686785,595.45,593.8,0.33681374]
[1743407835564,3.57937656,595.44,593.81,0.28916282]
[1743407835764,1.125202,595.43,593.83,0.33679672]
[1743407835960,6.91052904,595.43,593.84,0.28916282]
[1743407836263,8.99893103,595.42,593.86,0.33677971]
[1743407836463,5.7881272,595.41,593.87,0.28916282]
[1743407836665,2.20701671,595.4,593.89,0.3367627]
[1743407836965,0.84885258,595.4,593.9,0.28916282]
[1743407837158,3.5843669,595.4,593.92,0.33674568]
[1743407837361,6.50528427,595.4,593.93,0.28916282]
[1743407837560,4.70963057,595.39,593.95,0.33672868]
[1743407837761,3.35140477,595.38,593.96,0.28916282]
[1743407837958,2.22620277,595.37,593.98,0.33671167]
[1743407838163,6.50535155,595.39,593.99,0.28916282]
[1743407838364,1.117,595.36,594.01,0.33669466]
[1743407838665,1.117,595.36,594.02,0.28916282]
[1743407838960,3.09107087,595.36,594.03,0.33668333]
[1743407839164,2.242202,595.36,594.04,0.28916282]
[1743407839360,1.117,595.36,594.05,0.33667199]
[1743407839560,1.145,595.35,594.06,0.28916282]
[1743407839763,1.145,595.35,594.07,0.33666066]
[1743407839963,1.145,595.35,594.08,0.28916282]
[1743407840163,1.145,595.35,594.09,0.33664932]
[1743407840362,1.99386887,595.35,594.1,0.28916282]
[1743407840561,3.37203556,595.35,594.11,0.33663799]
[1743407840762,3.37203556,595.35,594.12,0.28916282]
[1743407841062,1.125202,595.34,594.13,0.33662666]
[1743407841265,3.35223756,595.34,594.14,0.28916282]
[1743407841462,3.35223756,595.34,594.15,0.33661533]
[1743407841664,3.35223756,595.34,594.16,0.28916282]
[1743407841968,3.35223756,595.34,594.17,0.336604]
[1743407842168,3.35223756,595.34,594.18,0.28916284]
[1743407842368,0.29265585,595.33,594.19,0.33659267]
[1743407842570,0.29265585,595.33,594.2,0.28916284]
[1743407842765,0.29265585,595.33,594.2,0.62574984]
[1743407842963,0.29265585,595.33,594.21,0.28916284]
[1743407843166,0.29265585,595.33,594.22,0.28916316]
[1743407843371,0.29265585,595.33,594.21,0.28916316]
[1743407843564,0.29265585,595.33,594.22,0.28916316]
[1743407843767,0.29265585,595.33,594.23,0.28916316]
[1743407843970,0.29265585,595.33,594.21,0.28916316]
[1743407844169,0.29265585,595.33,594.2,0.336587]
[1743407844170,0.29265585,595.33,594.22,0.28916316]
[1743407844470,0.29265585,595.33,594.23,0.28916316]
[1743407844666,3.35223756,595.34,594.21,0.28916316]
[1743407844876,3.35223756,595.34,594.22,0.28916316]
[1743407845073,0.2926497,595.33,594.21,0.28916316]
[1743407846569,4.97542313,595.33,594.21,0.28916316]
[1743407846767,7.18666148,595.33,594.21,0.28916316]
[1743407846967,8.72492915,595.32,594.21,0.28916316]
[1743407847266,5.80401178,595.31,594.21,0.28916316]
[1743407847470,2.21460674,595.3,594.22,0.28919563]
[1743407847671,2.21460674,595.3,594.2,0.336587]
[1743407847672,0.85181318,595.3,594.21,0.28919563]
[1743407847868,3.77273055,595.3,594.22,0.28919563]
[1743407848068,0.29267431,595.29,594.21,0.28919563]
[1743407848268,3.88544774,595.29,594.22,0.28919563]
[1743407848466,6.80636511,595.29,594.21,0.28919563]
[1743407848674,2.22997987,595.28,594.22,0.28919563]
[1743407848974,5.15089724,595.28,594.23,0.28919563]
[1743407849174,2.22997987,595.27,594.24,0.28919718]
[1743407849372,0.30896884,595.26,594.21,0.28919718]
[1743407849675,0.30896884,595.25,594.22,0.28923709]
[1743407849874,6.11458372,595.26,594.2,0.336587]
[1743407850074,2.52420421,595.25,594.2,0.336587]
[1743407850275,0.30896884,595.24,594.2,0.336587]
[1743407850877,9.5400478,595.24,594.2,0.336587]
[1743407851080,6.91194511,595.23,594.2,0.336587]
[1743407851273,5.80561488,595.22,594.2,0.336587]
[1743407851471,6.11458372,595.21,594.2,0.336587]
[1743407851675,6.11458372,595.2,594.2,0.336587]
[1743407851874,2.52420421,595.19,594.2,0.336587]
[1743407852076,0.30896884,595.18,594.2,0.336587]
[1743407852379,1.16078202,595.18,594.2,0.336587]
[1743407852577,5.80561488,595.18,594.2,0.336587]
[1743407852776,2.21523537,595.17,594.2,0.336587]
[1743407852974,3.77273055,595.17,594.2,0.336587]
[1743407853175,8.72653225,595.17,594.2,0.336587]
[1743407853376,5.80561488,595.16,594.2,0.336587]
[1743407853578,3.77273055,595.15,594.2,0.336587]
[1743407853778,1.37816669,595.14,594.2,0.336587]
[1743407853973,2.22997987,595.14,594.2,0.336587]
[1743407854180,0.30904975,595.13,594.2,0.336587]
[1743407854782,0.29283932,595.12,594.2,0.336587]
[1743407855080,0.30904975,595.11,594.2,0.336587]
[1743407855679,1.033,595.1,594.2,0.336587]
[1743407857585,1.069,595.09,594.2,0.336587]
[1743407857884,1.36182084,595.09,594.21,0.28925846]
[1743407859588,1.069,595.09,594.21,0.28925846]
[1743407859995,1.069,595.09,594.2,0.336587]
[1743407860296,0.29273463,595.08,594.2,0.336587]
[1743407862191,1.14351525,595.08,594.2,0.336587]
[1743407862392,0.29273463,595.08,594.2,0.336587]
[1743407862692,3.04498262,595.09,594.2,0.336587]
[1743407862891,0.29275802,595.07,594.2,0.336587]
[1743407865494,1.069,595.09,594.2,0.336587]
[1743407866191,0.29289601,595.08,594.2,0.336587]
[1743407867097,0.96989601,595.08,594.2,0.336587]
[1743407870796,1.98389601,595.08,594.2,0.336587]
[1743407871198,4.2148015,595.08,594.2,0.336587]
[1743407871395,0.8506759,595.07,594.2,0.336587]
[1743407871598,1.9758779,595.07,594.2,0.336587]
[1743407871903,3.35622882,595.07,594.2,0.336587]
[1743407872401,0.29287506,595.06,594.2,0.336587]
[1743407874599,3.92306305,595.08,594.2,0.336587]
[1743407875004,1.125202,595.07,594.2,0.336587]
[1743407875205,3.65014011,595.07,594.2,0.336587]
[1743407876100,0.85176898,595.06,594.2,0.336587]
[1743407876305,3.65079697,595.07,594.2,0.336587]
[1743407876499,1.065,595.05,594.2,0.336587]
[1743407878305,0.29287136,595.04,594.2,0.336587]
[1743407879506,1.065,595.03,594.2,0.336587]
[1743407881301,1.065,595.03,594.21,0.28922592]
[1743407881506,1.058,595.02,594.21,0.28922592]
[1743407885602,0.998,595.01,594.21,0.28922592]
[1743407887410,0.998,595.01,594.2,0.336587]
[1743407887612,0.998,595.01,594.21,0.28919202]
[1743407888506,0.998,595.01,594.2,0.336587]
[1743407888705,0.998,595.01,594.21,0.28913506]
[1743407889909,0.998,595.01,594.22,0.33657567]
[1743407890104,0.998,595.01,594.23,0.28913506]
[1743407890105,0.676,595.0,594.23,0.28913506]
[1743407890410,0.676,595.0,594.24,0.33656435]
[1743407890611,0.676,595.0,594.25,0.28913506]
[1743407890806,0.676,595.0,594.26,0.33655302]
[1743407891511,0.676,595.0,594.27,0.28911673]
[1743407891710,0.676,595.0,594.28,0.33654169]
[1743407895415,0.676,595.0,594.29,0.28911095]
[1743407895614,0.676,595.0,594.3,0.33653037]
[1743407895820,0.676,595.0,594.31,0.28911095]
[1743407896120,0.676,595.0,594.32,0.33651904]
[1743407896519,0.676,595.0,594.33,0.28910043]
[1743407896719,0.676,595.0,594.34,0.33650772]
[1743407896913,0.676,595.0,594.35,0.28910043]
[1743407897113,0.676,595.0,594.36,0.33649639]
[1743407897414,0.676,595.0,594.37,0.28910043]
[1743407898117,0.813,594.99,594.37,0.28910043]
[1743407898518,0.813,594.99,594.36,0.33649639]
[1743407903321,0.967,594.98,594.36,0.33649639]
[1743407905229,0.93,594.97,594.36,0.33649639]
[1743407908633,1.217,594.96,594.36,0.33649639]
[1743407909036,1.217,594.96,594.37,0.28907804]
[1743407910534,1.217,594.96,594.36,0.33649639]
[1743407910731,1.217,594.96,594.37,0.28897347]
[1743407911630,1.217,594.96,594.38,0.33648507]
[1743407911834,1.217,594.96,594.39,0.28897347]
[1743407912235,1.217,594.96,594.38,0.33648507]
[1743407912435,1.217,594.96,594.39,0.28897293]
[1743407912937,1.217,594.96,594.38,0.33648507]
[1743407917232,10.71854614,596.66,594.38,0.33648507]
[1743407917431,0.98578741,595.71,594.38,0.33648507]
[1743407917634,0.98587673,595.71,594.38,0.33648507]
[1743407917832,1.12347934,595.7,594.38,0.33648507]
[1743407918034,2.10935607,595.7,594.38,0.33648507]
[1743407918436,1.12347934,595.69,594.38,0.33648507]
[1743407918739,0.98587673,595.66,594.38,0.33648507]
[1743407918933,0.98587673,595.67,594.39,0.28913456]
[1743407919934,0.98587673,595.64,594.38,0.33648507]
[1743407920133,0.98587673,595.61,594.38,0.33648507]
[1743407920332,0.98587673,595.58,594.38,0.33648507]
[1743407920532,1.63060086,595.57,594.38,0.33648507]
[1743407920732,0.98587673,595.54,594.39,0.28916578]
[1743407920932,0.98587673,595.52,594.39,0.28916578]
[1743407921140,0.30891138,595.51,594.39,0.28916578]
[1743407921840,1.535,595.5,594.39,0.28916578]
[1743407922036,0.30891138,595.49,594.39,0.28916578]
[1743407922235,1.39391138,595.49,594.39,0.28916578]
[1743407922444,0.30891138,595.48,594.39,0.28916578]
[1743407922937,1.43239072,595.48,594.39,0.28916578]
[1743407923142,0.29260664,595.47,594.39,0.28916578]
[1743407923342,6.90779686,595.47,594.39,0.28916578]
[1743407923544,6.61519022,595.46,594.39,0.28916578]
[1743407923744,5.94655378,595.45,594.39,0.28916578]
[1743407924043,6.61519022,595.44,594.39,0.28916578]
[1743407924244,5.94655378,595.43,594.39,0.28916578]
[1743407924543,6.61523679,595.42,594.4,0.28918788]
[1743407924745,6.61523679,595.42,594.38,0.33648507]
[1743407924746,5.94660035,595.41,594.38,0.33648507]
[1743407924941,6.30788461,595.4,594.38,0.33648507]
[1743407925143,5.94821046,595.39,594.38,0.33648507]
[1743407925345,6.11241825,595.38,594.38,0.33648507]
[1743407925545,2.52273552,595.37,594.38,0.33648507]
[1743407925752,0.30896229,595.36,594.38,0.33648507]
[1743407926146,6.61685933,595.36,594.38,0.33648507]
[1743407926351,5.94823979,595.35,594.38,0.33648507]
[1743407926545,6.11241825,595.34,594.38,0.33648507]
[1743407926739,2.52273552,595.33,594.38,0.33648507]
[1743407926942,0.30896229,595.32,594.38,0.33648507]
[1743407927142,1.16041353,595.32,594.38,0.33648507]
[1743407927343,0.30896229,595.31,594.38,0.33648507]
[1743407927549,1.16041353,595.31,594.38,0.33648507]
[1743407927747,0.85145124,595.31,594.38,0.33648507]
[1743407927943,2.92104629,595.31,594.38,0.33648507]
[1743407928148,5.15314473,595.31,594.38,0.33648507]
[1743407928348,2.23209844,595.3,594.38,0.33648507]
[1743407928850,2.23435115,595.3,594.38,0.33648507]
[1743407929042,8.73035928,595.34,594.38,0.33648507]
[1743407929253,5.80931299,595.33,594.38,0.33648507]
[1743407929448,0.29275433,595.29,594.38,0.33648507]
[1743407931047,2.5277229,595.29,594.38,0.33648507]
[1743407931249,0.29275433,595.29,594.38,0.33648507]
[1743407931652,6.31697727,595.47,594.38,0.33648507]
[1743407931851,3.36600175,595.46,594.38,0.33648507]
[1743407932049,0.33588042,595.45,594.38,0.33648507]
[1743407932247,0.3089634,595.44,594.38,0.33648507]
[1743407932452,0.3358917,595.43,594.38,0.33648507]
[1743407932648,0.3089634,595.42,594.38,0.33648507]
[1743407932956,0.33590299,595.41,594.38,0.33648507]
[1743407933556,5.47368441,595.41,594.38,0.33648507]
[1743407933753,5.81254883,595.4,594.38,0.33648507]
[1743407933957,5.13778142,595.39,594.38,0.33648507]